fUSD/lending_fUSD_20241227
["ID","MTS","AMOUNT","RATE_DAILY","PERIOD"]
[346779543,1735282254354,-254.124847,0.00012766,2]
[346779544,1735282254363,-254.124847,0.00012766,2]
[346779545,1735282254372,-647.0,0.00012766,2]
[346779546,1735282254381,-500.0,0.00012766,2]
[346779547,1735282254391,-151.0,0.00012766,2]
[346779548,1735282254401,-151.0,0.00012766,2]
[346779549,1735282254410,-151.0,0.00012766,2]
[346779550,1735282254419,-696.41,0.00012766,2]
[346779551,1735282254428,-1423.78,0.00012766,2]
[346779552,1735282254437,-500.0,0.00012766,2]
[346779553,1735282254446,-1422.45,0.00012766,2]
[346779554,1735282254456,-500.0,0.00012766,2]
[346779555,1735282254465,-500.0,0.00012766,2]
[346779556,1735282254474,-500.0,0.00012766,2]
[346779557,1735282254483,-500.0,0.00012766,2]
[346779558,1735282254492,-151.0,0.00012766,2]
[346779559,1735282254501,-500.0,0.00012766,2]
[346779560,1735282254511,-523.7,0.00012766,2]
[346779561,1735282254520,-500.0,0.00012766,2]
[346779562,1735282254530,-500.0,0.00012766,2]
[346779563,1735282254539,-835.8,0.00012766,2]
[346779564,1735282254548,-773.0,0.00012766,2]
[346779565,1735282254558,-500.0,0.00012766,2]
[346779566,1735282254567,-745.18,0.00012766,2]
[346779567,1735282254576,-500.0,0.00012766,2]
[346779568,1735282254586,-500.0,0.00012766,2]
[346779569,1735282254595,-500.0,0.00012766,2]
[346779570,1735282254604,-145447.88522787,0.00012767,2]
[346779573,1735282778886,30000.0,9e-05,2]
[346779574,1735282843092,50000.0,9e-05,2]
[346779595,1735283431726,-612.42,9.114e-05,2]
[346779596,1735283431740,-6787.63,0.0001,2]
[346779597,1735283431751,-23063.663993,0.00010837,2]
[346779598,1735283431762,-178.63430206,0.00010892,2]
[346779599,1735283431773,-166.52,0.00010924,2]
[346779600,1735283431783,-1000.0,0.00010956,2]
[346779601,1735283431792,-300.0,0.00011046,2]
[346779602,1735283431802,-1500.0,0.00011047,2]
[346779603,1735283431812,-319.11,0.00011071,2]
[346779604,1735283431822,-250.0,0.0001108,2]
[346779605,1735283431832,-250.0,0.00011083,2]
[346779606,1735283431842,-250.0,0.00011084,2]
[346779607,1735283431852,-1646.61,0.00011086,2]
[346779608,1735283431862,-612.42,0.00011378,2]
[346779609,1735283431872,-178.63430206,0.00011644,2]
[346779610,1735283431884,-156.27,0.00011735,2]
[346779611,1735283431894,-156.27,0.00011739,2]
[346779612,1735283431906,-156.27,0.00011743,2]
[346779613,1735283431916,-23876.06,0.00011743,2]
[346779614,1735283431926,-389.35,0.00011744,2]
[346779615,1735283431938,-156.27,0.00011746,2]
[346779616,1735283431948,-156.27,0.0001175,2]
[346779617,1735283431959,-156.27,0.00011754,2]
[346779618,1735283431969,-156.27,0.00011757,2]
[346779619,1735283431980,-156.27,0.00011761,2]
[346779620,1735283431990,-156.27,0.00011765,2]
[346779621,1735283432002,-156.27,0.00011768,2]
[346779622,1735283432012,-156.27,0.00011772,2]
[346779623,1735283432023,-156.27,0.00011776,2]
[346779624,1735283432033,-156.27,0.00011779,2]
[346779625,1735283432042,-156.27,0.00011783,2]
[346779626,1735283432052,-156.27,0.00011787,2]
[346779627,1735283432062,-156.27,0.0001179,2]
[346779628,1735283432072,-156.27,0.00011794,2]
[346779629,1735283432082,-565.0,0.00012072,2]
[346779630,1735283432092,-633.0,0.00012072,2]
[346779631,1735283432102,-2015.819,0.00012072,2]
[346779632,1735283432112,-536.0,0.00012072,2]
[346779633,1735283432122,-2347.349,0.00012072,2]
[346779634,1735283432132,-150.0,0.00012072,2]
[346779635,1735283432142,-3889.0,0.00012072,2]
[346779636,1735283432152,-420.0,0.00012138,2]
[346779637,1735283432162,-413.895,0.0001232,2]
[346779638,1735283432173,-1000.0,0.00012325,2]
[346779639,1735283432183,-2012.0,0.00012398,2]
[346779640,1735283432193,-1266.0,0.00012398,2]
[346779641,1735283432203,-12174.52825185,0.00012433,2]
[346779642,1735283432213,-392.07486626,0.00012433,2]
[346779643,1735283432223,-12174.52825185,0.00012438,2]
[346779644,1735283432232,-17749.04941252,0.00012441,2]
[346779645,1735283432242,-17749.04941252,0.00012442,2]
[346779646,1735283432251,-392.07486626,0.00012443,2]
[346779647,1735283432261,-17749.04941252,0.00012452,2]
[346779648,1735283432271,-17749.04941252,0.00012454,2]
[346779649,1735283432281,-392.07486626,0.00012457,2]
[346779650,1735283432293,-12174.52825185,0.00012459,2]
[346779651,1735283432303,-392.07486626,0.0001246,2]
[346779652,1735283432314,-17749.04941252,0.00012461,2]
[346779653,1735283432324,-392.07486626,0.00012465,2]
[346779654,1735283432334,-392.07486626,0.00012466,2]
[346779655,1735283432344,-12174.52825185,0.00012467,2]
[346779658,1735283432354,-12174.52825185,0.00012467,2]
[346779660,1735283432364,-17749.04941252,0.00012468,2]
[346779662,1735283432374,-12174.52825185,0.00012469,2]
[346779664,1735283432384,-152.01,0.00012479,2]
[346779666,1735283432394,-152.2,0.00012479,2]
[346779668,1735283432404,-152.0,0.00012479,2]
[346779670,1735283432413,-151.54,0.00012479,2]
[346779672,1735283432423,-151.32,0.00012479,2]
[346779674,1735283432433,-152.24,0.00012479,2]
[346779676,1735283432443,-152.6,0.00012479,2]
[346779678,1735283432453,-150.94,0.00012479,2]
[346779680,1735283432463,-409.03739089,0.00012549,2]
[346779682,1735283432474,-3859.51057551,0.00012562,2]
[346779684,1735283432484,-12222.59358789,0.00012563,2]
[346779686,1735283432493,-3859.51057548,0.000126,2]
[346779688,1735283432504,-12222.59358783,0.000126,2]
[346779690,1735283432513,-3859.51057548,0.00012637,2]
[346779691,1735283432523,-12222.59358783,0.00012638,2]
[346779692,1735283432534,-2540.26,0.00012662,2]
[346779693,1735283432545,-500.0,0.00012662,2]
[346779694,1735283432555,-500.0,0.00012662,2]
[346779695,1735283432566,-1122.37,0.00012662,2]
[346779696,1735283432576,-4996.51,0.00012662,2]
[346779697,1735283432586,-7574.75,0.00012662,2]
[346779698,1735283432596,-603.96,0.00012662,2]
[346779699,1735283432606,-1985.57,0.00012662,2]
[346779700,1735283432616,-3151.91,0.00012662,2]
[346779701,1735283432626,-4328.86,0.00012662,2]
[346779702,1735283432636,-6858.16,0.00012662,2]
[346779703,1735283432646,-3198.61,0.00012662,2]
[346779704,1735283432656,-2492.12,0.00012662,2]
[346779705,1735283432666,-1112.89,0.00012662,2]
[346779706,1735283432676,-6705.02,0.00012662,2]
[346779707,1735283432686,-3012.56,0.00012662,2]
[346779708,1735283432695,-7698.71,0.00012662,2]
[346779709,1735283432705,-3122.15,0.00012662,2]
[346779710,1735283432715,-1550.17,0.00012662,2]
[346779711,1735283432725,-6781.96,0.00012662,2]
[346779712,1735283432737,-15705.12,0.00012662,2]
[346779713,1735283432746,-4678.29,0.00012662,2]
[346779714,1735283432756,-500.0,0.00012662,2]
[346779715,1735283432766,-5555.85,0.00012662,2]
[346779716,1735283432777,-2334.06,0.00012662,2]
[346779717,1735283432787,-10721.8,0.00012662,2]
[346779718,1735283432797,-12251.89,0.00012662,2]
[346779719,1735283432809,-822.85,0.00012662,2]
[346779720,1735283432819,-3541.37,0.00012662,2]
[346779721,1735283432829,-2537.59,0.00012662,2]
[346779722,1735283432838,-9344.44,0.00012662,2]
[346779723,1735283432848,-500.0,0.00012662,2]
[346779724,1735283432859,-4945.21,0.00012662,2]
[346779725,1735283432869,-904.04,0.00012662,2]
[346779726,1735283432879,-1851.4,0.00012662,2]
[346779727,1735283432888,-981.4,0.00012662,2]
[346779728,1735283432898,-500.0,0.00012662,2]
[346779729,1735283432908,-850.19,0.00012662,2]
[346779730,1735283432918,-500.0,0.00012663,2]
[346779731,1735283432928,-500.0,0.00012663,2]
[346779732,1735283432939,-500.0,0.00012663,2]
[346779733,1735283432949,-500.0,0.00012663,2]
[346779734,1735283432959,-650.43,0.00012663,2]
[346779735,1735283432969,-508.91175814,0.00012663,2]
[346779736,1735283432979,-702.78,0.00012663,2]
[346779737,1735283432988,-1789.35,0.00012663,2]
[346779738,1735283432998,-392.00649263,0.00012663,2]
[346779739,1735283433007,-504.34212832,0.00012663,2]
[346779740,1735283433017,-772.11,0.00012663,2]
[346779741,1735283433027,-1106.53,0.00012663,2]
[346779742,1735283433037,-522.37936402,0.00012663,2]
[346779743,1735283433048,-500.0,0.00012663,2]
[346779744,1735283433058,-616.88135823,0.00012663,2]
[346779745,1735283433068,-1707.09,0.00012663,2]
[346779746,1735283433079,-500.0,0.00012663,2]
[346779747,1735283433089,-508.10846831,0.00012663,2]
[346779748,1735283433100,-500.0,0.00012663,2]
[346779749,1735283433109,-1010.11,0.00012663,2]
[346779750,1735283433119,-199.24354807,0.00012663,2]
[346779751,1735283433129,-500.0,0.00012663,2]
[346779752,1735283433139,-518.79,0.00012663,2]
[346779753,1735283433149,-500.0,0.00012663,2]
[346779754,1735283433160,-500.0,0.00012663,2]
[346779755,1735283433170,-750.58,0.00012663,2]
[346779756,1735283433180,-500.0,0.00012663,2]
[346779757,1735283433190,-500.0,0.00012663,2]
[346779758,1735283433200,-500.0,0.00012663,2]
[346779759,1735283433209,-601.91,0.00012663,2]
[346779760,1735283433220,-500.0,0.00012663,2]
[346779761,1735283433230,-857.07,0.00012663,2]
[346779762,1735283433240,-454.93379969,0.00012663,2]
[346779763,1735283433250,-500.0,0.00012663,2]
[346779764,1735283433260,-500.0,0.00012663,2]
[346779765,1735283433271,-530.51,0.00012663,2]
[346779766,1735283433281,-516.74801089,0.00012663,2]
[346779767,1735283433292,-500.0,0.00012663,2]
[346779768,1735283433302,-500.0,0.00012663,2]
[346779769,1735283433312,-1573.06,0.00012663,2]
[346779770,1735283433323,-500.0,0.00012663,2]
[346779771,1735283433333,-500.0,0.00012663,2]
[346779772,1735283433343,-500.0,0.00012663,2]
[346779773,1735283433353,-562.03,0.00012663,2]
[346779774,1735283433363,-703.47,0.00012663,2]
[346779775,1735283433373,-500.0,0.00012663,2]
[346779776,1735283433383,-500.0,0.00012663,2]
[346779777,1735283433394,-885.11,0.00012663,2]
[346779778,1735283433403,-1271.24,0.00012663,2]
[346779779,1735283433413,-888.17,0.00012663,2]
[346779780,1735283433422,-500.0,0.00012663,2]
[346779781,1735283433432,-1807.49,0.00012663,2]
[346779782,1735283433442,-719.65,0.00012663,2]
[346779783,1735283433452,-2547.18,0.00012663,2]
[346779784,1735283433462,-500.0,0.00012663,2]
[346779785,1735283433472,-502.09858912,0.00012663,2]
[346779786,1735283433482,-290.09457523,0.00012663,2]
[346779787,1735283433492,-500.83912043,0.00012663,2]
[346779788,1735283433502,-500.0,0.00012663,2]
[346779789,1735283433512,-1010.54,0.00012663,2]
[346779790,1735283433522,-500.0,0.00012663,2]
[346779791,1735283433532,-1856.13,0.00012663,2]
[346779792,1735283433542,-500.0,0.00012663,2]
[346779793,1735283433553,-500.0,0.00012663,2]
[346779794,1735283433563,-1751.08,0.00012663,2]
[346779795,1735283433573,-500.0,0.00012663,2]
[346779796,1735283433583,-500.0,0.00012663,2]
[346779797,1735283433593,-520.28,0.00012663,2]
[346779798,1735283433603,-500.0,0.00012663,2]
[346779799,1735283433613,-528.62,0.00012663,2]
[346779800,1735283433622,-1199.71,0.00012663,2]
[346779801,1735283433633,-667.38,0.00012663,2]
[346779802,1735283433643,-500.0,0.00012663,2]
[346779803,1735283433653,-500.0,0.00012663,2]
[346779804,1735283433662,-500.0,0.00012663,2]
[346779805,1735283433672,-890.74,0.00012663,2]
[346779806,1735283433681,-500.0,0.00012663,2]
[346779807,1735283433691,-500.0,0.00012663,2]
[346779808,1735283433701,-500.0,0.00012663,2]
[346779809,1735283433711,-500.0,0.00012663,2]
[346779810,1735283433721,-500.0,0.00012663,2]
[346779811,1735283433734,-829.06,0.00012663,2]
[346779812,1735283433748,-500.0,0.00012663,2]
[346779813,1735283433759,-319.9350853,0.00012663,2]
[346779814,1735283433769,-500.0,0.00012663,2]
[346779815,1735283433779,-500.0,0.00012663,2]
[346779816,1735283433790,-1034.44,0.00012663,2]
[346779817,1735283433801,-539.86,0.00012663,2]
[346779818,1735283433811,-503.5348061,0.00012663,2]
[346779819,1735283433821,-500.0,0.00012663,2]
[346779820,1735283433830,-500.0,0.00012663,2]
[346779821,1735283433839,-1431.42,0.00012663,2]
[346779822,1735283433849,-500.0,0.00012663,2]
[346779823,1735283433858,-500.0,0.00012663,2]
[346779824,1735283433868,-500.0,0.00012663,2]
[346779825,1735283433877,-500.0,0.00012663,2]
[346779826,1735283433886,-500.0,0.00012663,2]
[346779827,1735283433896,-500.0,0.00012663,2]
[346779828,1735283433906,-500.0,0.00012663,2]
[346779829,1735283433916,-500.0,0.00012663,2]
[346779830,1735283433925,-500.0,0.00012663,2]
[346779831,1735283433935,-500.0,0.00012663,2]
[346779832,1735283433945,-1242.12,0.00012663,2]
[346779833,1735283433954,-1031.98,0.00012663,2]
[346779834,1735283433964,-500.0,0.00012663,2]
[346779835,1735283433973,-500.0,0.00012663,2]
[346779836,1735283433982,-500.0,0.00012663,2]
[346779837,1735283433992,-500.0,0.00012663,2]
[346779838,1735283434002,-751.97,0.00012663,2]
[346779839,1735283434011,-1886.52,0.00012663,2]
[346779840,1735283434021,-494.54381205,0.00012663,2]
[346779841,1735283434031,-500.0,0.00012663,2]
[346779842,1735283434040,-500.0,0.00012663,2]
[346779843,1735283434050,-571.28,0.00012663,2]
[346779844,1735283434059,-500.0,0.00012663,2]
[346779845,1735283434069,-2171.31,0.00012663,2]
[346779846,1735283434079,-500.0,0.00012663,2]
[346779847,1735283434088,-500.0,0.00012663,2]
[346779848,1735283434098,-500.0,0.00012663,2]
[346779849,1735283434109,-500.0,0.00012663,2]
[346779850,1735283434121,-500.0,0.00012663,2]
[346779851,1735283434130,-905.84,0.00012663,2]
[346779852,1735283434140,-500.0,0.00012663,2]
[346779853,1735283434149,-2100.55,0.00012663,2]
[346779854,1735283434159,-826.38,0.00012663,2]
[346779855,1735283434168,-500.0,0.00012663,2]
[346779856,1735283434178,-836.26,0.00012663,2]
[346779857,1735283434188,-638.25,0.00012663,2]
[346779858,1735283434197,-500.0,0.00012663,2]
[346779859,1735283434207,-500.0,0.00012663,2]
[346779860,1735283434217,-500.0,0.00012663,2]
[346779861,1735283434226,-500.0,0.00012663,2]
[346779862,1735283434236,-500.0,0.00012663,2]
[346779863,1735283434246,-500.0,0.00012663,2]
[346779864,1735283434256,-500.0,0.00012663,2]
[346779865,1735283434265,-500.0,0.00012663,2]
[346779866,1735283434275,-500.0,0.00012663,2]
[346779867,1735283434285,-500.0,0.00012663,2]
[346779868,1735283434295,-500.0,0.00012663,2]
[346779869,1735283434305,-647.96,0.00012663,2]
[346779870,1735283434315,-544.83,0.00012663,2]
[346779871,1735283434326,-500.0,0.00012663,2]
[346779872,1735283434335,-500.0,0.00012663,2]
[346779873,1735283434345,-1112.61,0.00012663,2]
[346779874,1735283434355,-500.0,0.00012663,2]
[346779875,1735283434365,-500.0,0.00012663,2]
[346779876,1735283434375,-500.0,0.00012663,2]
[346779877,1735283434385,-500.0,0.00012663,2]
[346779878,1735283434395,-516.99233798,0.00012663,2]
[346779879,1735283434405,-500.0,0.00012663,2]
[346779880,1735283434415,-500.0,0.00012663,2]
[346779881,1735283434424,-500.0,0.00012663,2]
[346779882,1735283434435,-500.0,0.00012663,2]
[346779883,1735283434445,-500.0,0.00012663,2]
[346779884,1735283434455,-500.0,0.00012663,2]
[346779885,1735283434466,-500.0,0.00012663,2]
[346779886,1735283434476,-1331.23,0.00012663,2]
[346779887,1735283434486,-535.68,0.00012663,2]
[346779888,1735283434496,-500.0,0.00012663,2]
[346779889,1735283434505,-154.575136,0.00012663,2]
[346779890,1735283434515,-2364.239196,0.00012663,2]
[346779891,1735283434525,-500.0,0.00012663,2]
[346779892,1735283434535,-500.0,0.00012663,2]
[346779893,1735283434545,-152.447558,0.00012663,2]
[346779894,1735283434556,-500.0,0.00012663,2]
[346779895,1735283434566,-2335.552905,0.00012663,2]
[346779896,1735283434576,-500.0,0.00012663,2]
[346779897,1735283434586,-952.43,0.00012663,2]
[346779898,1735283434596,-500.0,0.00012663,2]
[346779899,1735283434606,-500.0,0.00012663,2]
[346779900,1735283434616,-502.29285995,0.00012663,2]
[346779901,1735283434626,-1020.7,0.00012663,2]
[346779902,1735283434636,-1081.86,0.00012663,2]
[346779903,1735283434645,-5893.75946555,0.00012663,2]
[346779904,1735283434682,-17489.40053445,0.00012663,2]
[346779905,1735283434692,-500.0,0.00012663,2]
[346779906,1735283434701,-500.0,0.00012663,2]
[346779907,1735283434711,-500.0,0.00012663,2]
[346779908,1735283434721,-2716.59,0.00012663,2]
[346779909,1735283434731,-2485.0,0.00012663,2]
[346779910,1735283434744,-500.0,0.00012663,2]
[346779911,1735283434753,-500.0,0.00012663,2]
[346779912,1735283434763,-500.0,0.00012663,2]
[346779913,1735283434773,-500.0,0.00012663,2]
[346779914,1735283434783,-500.0,0.00012663,2]
[346779915,1735283434793,-874.58,0.00012663,2]
[346779916,1735283434803,-521.18,0.00012663,2]
[346779917,1735283434813,-881.53,0.00012663,2]
[346779918,1735283434823,-500.0,0.00012663,2]
[346779919,1735283434832,-500.0,0.00012663,2]
[346779920,1735283434842,-500.0,0.00012663,2]
[346779921,1735283434851,-2487.99,0.00012663,2]
[346779922,1735283434860,-948.41,0.00012663,2]
[346779923,1735283434870,-500.0,0.00012663,2]
[346779924,1735283434879,-500.0,0.00012663,2]
[346779925,1735283434889,-500.0,0.00012663,2]
[346779926,1735283434899,-675.69,0.00012663,2]
[346779927,1735283434911,-834.11,0.00012663,2]
[346779928,1735283434920,-500.0,0.00012663,2]
[346779929,1735283434932,-500.0,0.00012663,2]
[346779930,1735283434941,-500.0,0.00012663,2]
[346779931,1735283434951,-500.0,0.00012663,2]
[346779932,1735283434961,-500.0,0.00012663,2]
[346779933,1735283434970,-500.0,0.00012663,2]
[346779934,1735283434980,-2259.08,0.00012663,2]
[346779935,1735283434990,-500.0,0.00012663,2]
[346779936,1735283434999,-500.0,0.00012663,2]
[346779937,1735283435009,-500.0,0.00012663,2]
[346779938,1735283435018,-500.0,0.00012663,2]
[346779939,1735283435027,-500.0,0.00012663,2]
[346779940,1735283435037,-500.0,0.00012663,2]
[346779941,1735283435047,-981.89,0.00012663,2]
[346779942,1735283435057,-500.0,0.00012663,2]
[346779943,1735283435066,-2916.78,0.00012663,2]
[346779944,1735283435077,-945.43,0.00012663,2]
[346779945,1735283435087,-500.0,0.00012663,2]
[346779946,1735283435097,-616.86,0.00012663,2]
[346779947,1735283435107,-2814.0,0.00012663,2]
[346779948,1735283435118,-572.71,0.00012663,2]
[346779949,1735283435127,-500.0,0.00012663,2]
[346779950,1735283435137,-1286.06,0.00012663,2]
[346779951,1735283435147,-500.0,0.00012663,2]
[346779952,1735283435156,-500.0,0.00012663,2]
[346779953,1735283435166,-500.0,0.00012663,2]
[346779954,1735283435175,-500.0,0.00012663,2]
[346779955,1735283435185,-503.64706729,0.00012663,2]
[346779956,1735283435194,-500.0,0.00012663,2]
[346779957,1735283435204,-500.0,0.00012663,2]
[346779958,1735283435214,-500.0,0.00012663,2]
[346779959,1735283435223,-500.0,0.00012663,2]
[346779960,1735283435233,-500.0,0.00012663,2]
[346779961,1735283435243,-500.0,0.00012663,2]
[346779962,1735283435252,-500.0,0.00012663,2]
[346779963,1735283435262,-1803.57,0.00012663,2]
[346779964,1735283435271,-1903.26,0.00012663,2]
[346779965,1735283435281,-500.0,0.00012663,2]
[346779966,1735283435291,-500.0,0.00012663,2]
[346779967,1735283435301,-500.32007425,0.00012663,2]
[346779968,1735283435310,-1295.31,0.00012663,2]
[346779969,1735283435320,-500.0,0.00012663,2]
[346779970,1735283435329,-500.0,0.00012663,2]
[346779971,1735283435339,-500.0,0.00012663,2]
[346779972,1735283435348,-601.38,0.00012663,2]
[346779973,1735283435359,-500.0,0.00012663,2]
[346779974,1735283435369,-743.93,0.00012663,2]
[346779975,1735283435378,-500.0,0.00012663,2]
[346779976,1735283435388,-1151.05,0.00012663,2]
[346779977,1735283435398,-500.0,0.00012663,2]
[346779978,1735283435407,-500.0,0.00012663,2]
[346779979,1735283435417,-238.19961183,0.00012663,2]
[346779980,1735283435426,-1118.33,0.00012663,2]
[346779981,1735283435436,-500.0,0.00012663,2]
[346779982,1735283435446,-500.0,0.00012663,2]
[346779983,1735283435668,-500.0,0.00012663,2]
[346779984,1735283435678,-500.0,0.00012663,2]
[346779985,1735283435688,-500.0,0.00012663,2]
[346779986,1735283435697,-500.0,0.00012663,2]
[346779987,1735283435707,-500.0,0.00012663,2]
[346779988,1735283435716,-500.0,0.00012663,2]
[346779989,1735283435726,-500.0,0.00012663,2]
[346779990,1735283435740,-3614.2,0.00012663,2]
[346779991,1735283435750,-880.66,0.00012663,2]
[346779992,1735283435759,-2845.34,0.00012663,2]
[346779993,1735283435768,-1077.09,0.00012663,2]
[346779994,1735283435779,-500.0,0.00012663,2]
[346779995,1735283435790,-500.0,0.00012663,2]
[346779996,1735283435799,-500.0,0.00012663,2]
[346779997,1735283435811,-500.0,0.00012663,2]
[346779998,1735283435820,-500.0,0.00012663,2]
[346779999,1735283435830,-1058.14,0.00012663,2]
[346780000,1735283435840,-500.0,0.00012663,2]
[346780001,1735283435849,-500.0,0.00012663,2]
[346780002,1735283435859,-500.0,0.00012663,2]
[346780003,1735283435869,-742.76,0.00012663,2]
[346780004,1735283435878,-500.0,0.00012663,2]
[346780005,1735283435888,-500.0,0.00012663,2]
[346780006,1735283435897,-500.0,0.00012663,2]
[346780007,1735283435907,-1194.72,0.00012663,2]
[346780008,1735283435917,-507.23654545,0.00012663,2]
[346780009,1735283435926,-1696.26,0.00012663,2]
[346780010,1735283435935,-500.0,0.00012663,2]
[346780011,1735283435945,-500.0,0.00012663,2]
[346780012,1735283435955,-500.0,0.00012663,2]
[346780013,1735283435965,-510.8,0.00012663,2]
[346780014,1735283435975,-1225.25,0.00012663,2]
[346780015,1735283435985,-1001.93,0.00012663,2]
[346780016,1735283435994,-500.0,0.00012663,2]
[346780017,1735283436005,-914.4,0.00012663,2]
[346780018,1735283436015,-500.0,0.00012663,2]
[346780019,1735283436025,-500.0,0.00012663,2]
[346780020,1735283436034,-500.0,0.00012663,2]
[346780021,1735283436045,-500.0,0.00012663,2]
[346780022,1735283436055,-500.0,0.00012663,2]
[346780023,1735283436064,-500.0,0.00012663,2]
[346780024,1735283436074,-18304.74,0.00012663,2]
[346780025,1735283436084,-500.0,0.00012663,2]
[346780026,1735283436094,-500.0,0.00012663,2]
[346780027,1735283436103,-500.0,0.00012663,2]
[346780028,1735283436113,-711.04,0.00012663,2]
[346780029,1735283436123,-501.16119606,0.00012663,2]
[346780030,1735283436132,-500.0,0.00012663,2]
[346780031,1735283436142,-877.3,0.00012663,2]
[346780032,1735283436152,-500.0,0.00012663,2]
[346780033,1735283436162,-500.0,0.00012663,2]
[346780034,1735283436172,-2312.95,0.00012663,2]
[346780035,1735283436181,-500.0,0.00012663,2]
[346780036,1735283436191,-500.0,0.00012663,2]
[346780037,1735283436200,-551.8,0.00012663,2]
[346780038,1735283436210,-500.0,0.00012663,2]
[346780039,1735283436219,-2221.9,0.00012663,2]
[346780040,1735283436228,-500.0,0.00012663,2]
[346780041,1735283436238,-500.0,0.00012663,2]
[346780042,1735283436247,-563.25,0.00012663,2]
[346780043,1735283436257,-500.0,0.00012663,2]
[346780044,1735283436266,-1373.91,0.00012663,2]
[346780045,1735283436277,-500.0,0.00012663,2]
[346780046,1735283436286,-601.28,0.00012663,2]
[346780047,1735283436296,-3572.28,0.00012663,2]
[346780048,1735283436306,-500.0,0.00012663,2]
[346780049,1735283436315,-500.0,0.00012663,2]
[346780050,1735283436325,-500.0,0.00012663,2]
[346780051,1735283436335,-640.87,0.00012663,2]
[346780052,1735283436344,-538.8,0.00012663,2]
[346780053,1735283436354,-500.0,0.00012663,2]
[346780054,1735283436364,-605.23850026,0.00012663,2]
[346780055,1735283436374,-505.52365417,0.00012663,2]
[346780056,1735283436384,-500.0,0.00012663,2]
[346780057,1735283436393,-500.0,0.00012663,2]
[346780058,1735283436403,-500.0,0.00012663,2]
[346780059,1735283436413,-500.0,0.00012663,2]
[346780060,1735283436423,-500.0,0.00012663,2]
[346780061,1735283436433,-2254.57,0.00012663,2]
[346780062,1735283436443,-2031.1,0.00012663,2]
[346780063,1735283436452,-500.0,0.00012663,2]
[346780064,1735283436462,-500.0,0.00012663,2]
[346780065,1735283436472,-500.0,0.00012663,2]
[346780066,1735283436482,-500.0,0.00012663,2]
[346780067,1735283436491,-500.0,0.00012663,2]
[346780068,1735283436501,-624.41,0.00012663,2]
[346780069,1735283436511,-1691.28,0.00012663,2]
[346780070,1735283436521,-500.0,0.00012663,2]
[346780071,1735283436530,-500.0,0.00012663,2]
[346780072,1735283436540,-560.11,0.00012663,2]
[346780073,1735283436550,-511.26591481,0.00012663,2]
[346780074,1735283436559,-500.0,0.00012663,2]
[346780075,1735283436569,-2232.55,0.00012663,2]
[346780076,1735283436579,-500.0,0.00012663,2]
[346780077,1735283436589,-500.0,0.00012663,2]
[346780078,1735283436598,-500.0,0.00012663,2]
[346780079,1735283436607,-500.0,0.00012663,2]
[346780080,1735283436617,-500.0,0.00012663,2]
[346780081,1735283436626,-500.0,0.00012663,2]
[346780082,1735283436635,-500.0,0.00012663,2]